bitfinex/quotes_SOLUSD_20251202
["timestamp","ask_amount","ask_price","bid_price","bid_amount"]
[1764637699256,8.80994492,128.18,128.12,7.80472436]
[1764637699583,8.80994492,128.18,128.07,11.82188351]
[1764637699584,11.14188351,128.13,128.07,11.82188351]
[1764637699756,11.14188351,128.11,128.08,7.80762023]
[1764637699957,11.14188351,128.12,128.08,8.48762023]
[1764637700153,17.78994492,128.15,128.08,38.46855433]
[1764637700356,0.36,128.16,128.1,11.14188351]
[1764637700357,11.14188351,128.16,128.1,11.14188351]
[1764637700564,8.98,128.19,128.13,11.14188351]
[1764637700774,0.36,128.21,128.14,11.14188351]
[1764637701082,11.14188351,128.21,128.15,11.14188351]
[1764637701268,11.14188351,128.21,128.16,11.14188351]
[1764637701466,11.14188351,128.21,128.15,11.14188351]
[1764637701668,9.34,128.23,128.15,11.14188351]
[1764637701866,8.98,128.23,128.17,11.14188351]
[1764637702059,8.98,128.23,128.17,11.82188351]
[1764637702060,20.12188351,128.23,128.17,11.82188351]
[1764637702497,9.55446252,128.2,128.18,27.30535183]
[1764637703091,8.98,128.24,128.18,27.98535183]
[1764637703092,9.55446252,128.22,128.18,27.98535183]
[1764637703388,9.55446252,128.24,128.19,10.23446252]
[1764637703584,18.53446252,128.25,128.2,0.68]
[1764637703880,9.55446252,128.22,128.18,27.30535183]
[1764637704386,9.55446252,128.22,128.18,27.98535183]
[1764637704566,8.98,128.25,128.18,27.98535183]
[1764637704567,9.55446252,128.21,128.18,27.30535183]
[1764637704768,9.55446252,128.19,128.17,7.80192733]
[1764637705076,9.55446252,128.18,128.13,0.68]
[1764637705282,9.55446252,128.17,128.13,0.68]
[1764637705493,9.55446252,128.18,128.14,27.31361428]
[1764637705780,0.36,128.22,128.14,36.8680768]
[1764637706087,9.55446252,128.2,128.15,0.68]
[1764637706290,18.51446252,128.22,128.17,27.30748224]
[1764637706496,9.55446252,128.2,128.17,27.30748224]
[1764637706676,9.55446252,128.18,128.16,7.80259204]
[1764637706864,9.16994492,128.21,128.16,7.80259204]
[1764637706865,8.80994492,128.21,128.16,7.80259204]
[1764637707069,8.96,128.22,128.17,0.68]
[1764637707371,9.55446252,128.2,128.16,27.30945845]
[1764637707568,9.55446252,128.17,128.16,27.30945845]
[1764637707758,9.55446252,128.17,128.16,7.80259204]
[1764637708170,9.55446252,128.17,128.14,7.80335963]
[1764637708382,9.55446252,128.16,128.14,7.80335963]
[1764637708761,8.80994492,128.19,128.14,7.80335963]
[1764637709163,25.56965291,128.21,128.15,0.68]
[1764637709381,9.55446252,128.17,128.14,7.80335963]
[1764637709587,0.36,128.2,128.12,7.80460549]
[1764637709588,9.55446252,128.15,128.12,7.80460549]
[1764637709893,9.55446252,128.16,128.13,0.68]
[1764637710087,8.96,128.21,128.13,10.23446252]
[1764637710294,9.55446252,128.15,128.11,7.80579189]
[1764637710469,8.80994492,128.19,128.11,7.80579189]
[1764637710670,9.55446252,128.15,128.11,27.32027163]
[1764637710974,9.55446252,128.15,128.11,28.04027163]
[1764637711293,8.80994492,128.19,128.12,10.27446252]
[1764637711494,8.80994492,128.2,128.12,9.7]
[1764637711697,9.55446252,128.18,128.13,0.72]
[1764637712072,9.55446252,128.19,128.13,10.27446252]
[1764637712273,9.55446252,128.19,128.14,7.80396441]
[1764637712479,6.24290441,128.19,128.14,28.03387544]
[1764637712772,6.24290441,128.17,128.13,7.80434166]
[1764637713172,6.24290441,128.17,128.14,0.72]
[1764637713487,8.80994492,128.2,128.14,0.72]
[1764637713488,6.24290441,128.18,128.14,0.72]
[1764637713677,6.24290441,128.17,128.14,0.72]
[1764637713866,6.24290441,128.15,128.12,7.80499774]
[1764637714272,9.16994492,128.17,128.1,7.80640124]
[1764637714471,6.24290441,128.14,128.1,7.80640124]
[1764637714694,6.24290441,128.12,128.09,7.80684958]
[1764637714892,6.24290441,128.14,128.1,0.72]
[1764637715071,6.24290441,128.15,128.1,0.72]
[1764637715388,8.96,128.16,128.1,0.72]
[1764637715578,6.24290441,128.14,128.1,0.72]
[1764637715776,6.24290441,128.15,128.1,6.96290441]
[1764637716099,6.24290441,128.13,128.09,7.80684958]
[1764637716298,6.24290441,128.14,128.1,0.72]
[1764637716501,8.80994492,128.18,128.11,43.62913563]
[1764637716797,6.24290441,128.16,128.11,49.87204004]
[1764637716973,6.24290441,128.16,128.11,44.34913563]
[1764637717295,6.24290441,128.16,128.12,0.72]
[1764637717501,6.24290441,128.15,128.11,44.34913563]
[1764637717670,6.24290441,128.15,128.11,8.52579189]
[1764637717871,6.24290441,128.13,128.09,37.00359064]
[1764637718086,6.24290441,128.12,128.09,7.80650527]
[1764637718394,6.24290441,128.12,128.08,7.80762023]
[1764637718593,8.80994492,128.15,128.08,8.52762023]
[1764637718594,6.24290441,128.11,128.08,8.52762023]
[1764637718783,6.24290441,128.1,128.07,7.80800496]
[1764637718988,6.24290441,128.08,128.06,7.80867513]
[1764637719186,6.24290441,128.08,128.05,8.52924415]
[1764637719594,6.24290441,128.07,128.05,7.80924415]
[1764637719894,6.24290441,128.11,128.06,0.72]
[1764637720098,6.24290441,128.09,128.06,0.72]
[1764637720299,6.24290441,128.09,128.05,28.05286773]
[1764637720598,6.24290441,128.09,128.05,27.33286773]
[1764637720779,6.24290441,128.1,128.06,0.72]
[1764637720985,6.24290441,128.11,128.06,6.96290441]
[1764637721185,6.24290441,128.1,128.06,0.72]
[1764637721776,7.80471083,128.13,128.06,6.96290441]
[1764637721978,6.24290441,128.12,128.07,6.24290441]
[1764637722185,6.24290441,128.11,128.06,6.24290441]
[1764637722386,6.24290441,128.13,128.09,27.32453742]
[1764637722602,25.11880892,128.16,128.1,6.24290441]
[1764637722603,16.61279813,128.16,128.1,6.24290441]
[1764637722900,16.61279813,128.16,128.1,6.94290441]
[1764637722901,6.24290441,128.16,128.1,6.94290441]
[1764637723097,6.24290441,128.15,128.1,6.94290441]
[1764637723403,6.24290441,128.16,128.1,6.94290441]
[1764637723604,7.80031201,128.2,128.11,0.7]
[1764637723811,6.07941369,128.24,128.14,6.24290441]
[1764637723812,17.11979125,128.21,128.14,6.24290441]
[1764637724096,6.24290441,128.18,128.13,0.7]
[1764637724306,6.24290441,128.18,128.13,6.94290441]
[1764637724490,6.24290441,128.18,128.14,27.31387544]
[1764637725507,8.80994492,128.2,128.15,6.94290441]
[1764637725508,6.24290441,128.2,128.15,6.94290441]
[1764637725709,17.76994492,128.22,128.15,6.94290441]
[1764637725873,6.24290441,128.21,128.16,6.94290441]
[1764637726277,6.24290441,128.2,128.16,0.7]
[1764637726479,6.24290441,128.21,128.16,0.7]
[1764637726688,6.24290441,128.21,128.17,7.80213778]
[1764637726983,15.20290441,128.22,128.17,7.80213778]
[1764637727180,6.24290441,128.21,128.17,8.50213778]
[1764637727387,8.96,128.22,128.18,6.94290441]
[1764637727793,8.96,128.22,128.19,0.7]
[1764637728405,8.96,128.22,128.2,7.80031201]
[1764637729304,15.20290441,128.22,128.2,7.80031201]
[1764637729678,6.24290441,128.21,128.2,7.80031201]
[1764637730191,6.24290441,128.21,128.18,7.80115035]
[1764637730585,6.24290441,128.19,128.15,7.80320628]
[1764637730806,15.20290441,128.22,128.17,6.24290441]
[1764637731285,15.18290441,128.24,128.18,6.94290441]
[1764637731604,8.94,128.24,128.19,6.24290441]
[1764637731804,8.94,128.24,128.19,6.94290441]
[1764637732012,8.94,128.24,128.16,8.94]
[1764637732013,6.24290441,128.23,128.18,16.308864]
[1764637732385,6.24290441,128.23,128.18,17.008864]
[1764637732584,6.24290441,128.23,128.19,7.8009205]
[1764637732809,6.24290441,128.21,128.17,27.30748224]
[1764637732988,25.5479903,128.24,128.18,6.94290441]
[1764637732989,15.05284933,128.23,128.18,6.94290441]
[1764637733187,6.24290441,128.22,128.18,0.7]
[1764637733386,6.24290441,128.22,128.17,7.80213778]
[1764637733387,6.24290441,128.21,128.17,7.80213778]
[1764637733588,6.24290441,128.2,128.17,7.80213778]
[1764637733795,6.24290441,128.19,128.16,7.80251333]
[1764637734006,6.24290441,128.2,128.16,7.80251333]
[1764637734486,6.24290441,128.19,128.15,7.80312143]
[1764637734682,6.24290441,128.2,128.16,0.7]
[1764637735307,6.24290441,128.18,128.15,7.80312143]
[1764637735511,6.24290441,128.18,128.13,17.44434278]
[1764637735698,6.24290441,128.18,128.14,0.7]
[1764637736006,6.24290441,128.16,128.13,7.80434278]
[1764637736209,6.24290441,128.14,128.12,7.80503137]
[1764637736511,6.24290441,128.14,128.11,19.51368614]
[1764637736512,6.24290441,128.14,128.11,7.80559405]
[1764637737005,6.24290441,128.13,128.09,0.7]
[1764637737208,8.80994492,128.15,128.09,0.7]
[1764637737514,6.24290441,128.13,128.09,0.7]
[1764637738083,6.24290441,128.12,128.09,0.7]
[1764637738605,36.48177947,128.15,128.07,8.50815696]
[1764637738803,6.24290441,128.11,128.07,8.50815696]
[1764637739007,8.92,128.12,128.06,16.74866346]
[1764637739208,6.24290441,128.11,128.07,0.7]
[1764637740409,6.24290441,128.13,128.08,7.80762023]
[1764637740714,19.85818715,128.22,128.12,6.24290441]
[1764637741008,6.24290441,128.19,128.14,6.24290441]
[1764637741211,8.92,128.21,128.08,33.56957523]
[1764637741212,8.95210649,128.2,128.1,0.7]
[1764637741423,8.80994492,128.15,128.08,7.80762023]
[1764637741591,9.08216157,128.14,128.07,7.80808737]
[1764637741786,9.08216157,128.14,128.06,19.52134472]
[1764637741787,8.80994492,128.1,128.03,0.7]
[1764637741993,8.80994492,128.1,128.04,7.80983396]
[1764637742217,8.80994492,128.08,128.04,7.80983396]
[1764637742512,6.24290441,128.1,128.06,7.8088396]
[1764637742721,15.18290441,128.11,128.06,27.33093861]
[1764637742931,8.94,128.11,128.06,28.03093861]
[1764637743101,15.18290441,128.11,128.07,0.7]
[1764637743302,6.24290441,128.1,128.07,0.7]
[1764637743624,6.24290441,128.12,128.07,6.94290441]
[1764637743829,6.24290441,128.1,128.07,0.7]
[1764637744198,6.24290441,128.11,128.07,0.7]
[1764637744396,6.24290441,128.12,128.08,27.32667082]
[1764637744601,27.66878554,128.17,128.09,6.24290441]
[1764637744811,6.24290441,128.16,128.11,6.24290441]
[1764637745009,6.24290441,128.13,128.09,0.7]
[1764637745433,6.24290441,128.14,128.09,6.94290441]
[1764637745815,6.24290441,128.14,128.09,0.7]
[1764637746012,6.24290441,128.13,128.08,42.50957523]
[1764637746232,16.97324083,128.16,128.1,0.7]
[1764637746405,6.24290441,128.13,128.08,36.96667082]
[1764637746608,6.24290441,128.11,128.08,27.32667082]
[1764637746925,6.24290441,128.1,128.08,7.80762023]
[1764637747234,6.24290441,128.12,128.08,7.80762023]
[1764637747428,6.24290441,128.11,128.08,7.80762023]
[1764637748007,6.24290441,128.11,128.07,27.32863457]
[1764637748208,6.24290441,128.11,128.08,0.7]
[1764637748408,6.24290441,128.1,128.07,28.02863457]
[1764637749149,16.74453844,128.14,128.08,0.7]
[1764637749314,8.80994492,128.15,128.09,6.24290441]
[1764637749632,6.24290441,128.14,128.09,0.7]
[1764637750215,6.24290441,128.14,128.1,7.80640124]
[1764637750417,0.36,128.2,128.11,6.24290441]
[1764637750624,6.24290441,128.16,128.11,0.7]
[1764637750937,6.24290441,128.16,128.1,24.11526524]
[1764637750938,6.24290441,128.14,128.1,7.80640124]
[1764637751111,6.24290441,128.16,128.11,6.94290441]
[1764637751634,6.24290441,128.16,128.1,7.80640124]
[1764637751635,6.24290441,128.15,128.12,0.65]
[1764637752233,6.24290441,128.15,128.1,20.16600312]
[1764637752412,6.24290441,128.15,128.11,27.97027163]
[1764637752735,6.24290441,128.15,128.11,8.45579189]
[1764637752923,6.24290441,128.15,128.11,27.97027163]
[1764637753120,6.24290441,128.15,128.11,8.45579189]
[1764637753320,8.80994492,128.18,128.12,0.65]
[1764637753512,6.24290441,128.19,128.13,6.24290441]
[1764637753717,6.24290441,128.17,128.14,0.65]
[1764637754117,6.24290441,128.16,128.12,0.65]
[1764637754326,8.80994492,128.18,128.1,0.65]
[1764637754327,6.24290441,128.14,128.1,0.65]
[1764637754632,6.24290441,128.15,128.1,6.24290441]
[1764637754946,8.94,128.19,128.11,0.65]
[1764637755112,15.18290441,128.19,128.13,6.24290441]
[1764637755308,6.24290441,128.18,128.14,0.65]
[1764637755827,16.74100338,128.19,128.12,0.65]
[1764637756032,8.80994492,128.2,128.13,6.89290441]
[1764637756229,6.24290441,128.18,128.14,8.45337099]
[1764637756444,6.24290441,128.17,128.12,8.45459928]
[1764637756636,6.24290441,128.16,128.12,8.45459928]
[1764637756941,8.94,128.18,128.12,8.45459928]
[1764637757129,6.24290441,128.16,128.12,8.45459928]
[1764637757333,6.24290441,128.15,128.12,0.65]
[1764637757634,8.80994492,128.17,128.11,0.65]
[1764637757840,6.24290441,128.15,128.11,24.76463552]
[1764637758038,6.24290441,128.15,128.11,16.958864]
[1764637758244,6.24290441,128.15,128.12,0.65]
[1764637758539,6.24290441,128.13,128.07,0.65]
[1764637758837,6.24290441,128.13,128.07,8.45822987]
[1764637758838,6.24290441,128.11,128.07,8.45822987]
[1764637759141,6.24290441,128.12,128.07,8.45822987]
[1764637759439,6.24290441,128.12,128.08,0.65]
[1764637759741,8.92,128.14,128.08,0.65]
[1764637759924,6.24290441,128.1,128.06,16.72870877]
[1764637760241,6.24290441,128.1,128.07,0.65]
[1764637760915,6.24290441,128.1,128.07,8.45762385]
[1764637761917,16.72453937,128.14,128.08,0.65]
[1764637762118,6.24290441,128.12,128.08,0.65]
[1764637762540,6.24290441,128.1,128.07,27.32819853]
[1764637763042,6.24290441,128.11,128.07,27.97819853]
[1764637763342,6.24290441,128.13,128.08,0.65]
[1764637763942,6.24290441,128.13,128.09,27.32453742]
[1764637764329,9.79232147,128.12,128.09,27.97453742]
[1764637764646,9.79232147,128.1,128.08,7.80737452]
[1764637765743,9.79232147,128.1,128.07,27.32830255]
[1764637765921,9.79232147,128.1,128.07,27.97830255]
[1764637766435,9.79232147,128.09,128.07,7.80822987]
[1764637766625,9.79232147,128.09,128.07,8.45822987]
[1764637766944,9.79232147,128.08,128.07,7.80822987]
[1764637767132,9.79232147,128.09,128.07,8.45822987]
[1764637767334,8.80994492,128.12,128.07,8.45822987]
[1764637767657,9.79232147,128.1,128.07,8.45822987]
[1764637768031,9.79232147,128.12,128.08,0.65]
[1764637768230,9.79232147,128.09,128.07,7.80822987]
[1764637768546,8.80994492,128.07,128.01,0.65]
[1764637768749,9.79232147,128.05,128.01,0.65]
[1764637769450,9.79232147,128.07,128.02,27.33947819]
[1764637769629,9.79232147,128.07,128.03,0.65]
[1764637769836,9.79232147,128.06,128.03,0.65]
[1764637770425,18.71232147,128.08,128.03,0.65]
[1764637770748,9.79232147,128.08,128.03,10.44232147]
[1764637770954,9.79232147,128.08,128.03,0.65]
[1764637771119,9.79232147,128.07,128.03,0.65]
[1764637771323,9.79232147,128.06,128.03,8.46037261]
[1764637771523,9.79232147,128.04,128.01,7.81175629]
[1764637771724,9.79232147,128.04,128.01,8.49175629]
[1764637771945,9.79232147,128.04,128.02,0.68]
[1764637772349,8.92,128.07,128.02,0.68]
[1764637772550,9.79232147,128.08,128.02,22.49232147]
[1764637772850,9.79232147,128.07,128.02,9.6]
[1764637773157,9.79232147,128.09,128.03,10.47232147]
[1764637773353,18.71232147,128.1,128.05,27.33307301]
[1764637773526,9.79232147,128.09,128.05,27.33307301]
[1764637773722,9.79232147,128.07,128.04,7.80991134]
[1764637773937,8.92,128.1,128.05,0.68]
[1764637774155,9.79232147,128.09,128.05,0.68]
[1764637775146,9.79232147,128.08,128.05,0.68]
[1764637775354,9.79232147,128.09,128.06,7.8088396]
[1764637775733,9.79232147,128.09,128.06,8.4888396]
[1764637775943,9.79232147,128.08,128.06,0.68]
[1764637776248,9.79232147,128.09,128.06,0.68]
[1764637776557,35.82108508,128.13,128.06,0.68]
[1764637776558,16.308864,128.13,128.06,0.68]
[1764637776730,8.80994492,128.14,128.06,19.37232147]
[1764637776926,8.9,128.15,128.07,16.308864]
[1764637777147,9.79232147,128.16,128.1,9.79232147]
[1764637777458,9.79232147,128.16,128.12,7.80518264]
[1764637777838,9.79232147,128.15,128.12,7.80518264]
[1764637778047,9.79232147,128.15,128.11,7.80557469]
[1764637778430,9.79232147,128.16,128.12,0.68]
[1764637778851,9.79232147,128.13,128.09,0.68]
[1764637779042,9.26,128.15,128.09,11.58696001]
[1764637779353,9.79232147,128.11,128.08,7.80762023]
[1764637779653,9.79232147,128.11,128.07,8.4880448]
[1764637779827,9.79232147,128.11,128.08,0.68]
[1764637780030,9.79232147,128.12,128.08,0.68]
[1764637780558,9.79232147,128.11,128.08,0.68]
[1764637780955,9.79232147,128.11,128.07,27.32861948]
[1764637781260,9.79232147,128.1,128.07,28.00861948]
[1764637781767,9.79232147,128.09,128.07,7.8080448]
[1764637782259,9.79232147,128.12,128.08,0.72]
[1764637782754,9.79232147,128.11,128.08,0.72]
[1764637782956,9.79232147,128.12,128.08,0.72]
[1764637783463,9.79232147,128.11,128.08,0.72]
[1764637783648,25.87394171,128.14,128.09,7.80701069]
[1764637783848,9.79232147,128.11,128.09,7.80701069]
[1764637784037,0.36,128.13,128.09,7.80701069]
[1764637784239,9.79232147,128.11,128.09,7.80701069]
[1764637784856,9.79232147,128.13,128.1,0.72]
[1764637785247,9.79232147,128.12,128.1,0.72]
[1764637785641,9.79232147,128.11,128.09,7.80701069]
[1764637785841,9.79232147,128.12,128.09,7.80701069]
[1764637786064,9.79232147,128.1,128.09,7.80701069]
[1764637786363,9.79232147,128.1,128.08,7.80741786]
[1764637786955,9.79232147,128.11,128.08,8.52741786]
[1764637787543,9.79232147,128.12,128.09,0.72]
[1764637787851,9.79232147,128.13,128.09,0.72]
[1764637788050,18.69232147,128.15,128.09,10.51232147]
[1764637788249,8.9,128.15,128.09,0.72]
[1764637788444,9.79232147,128.16,128.11,9.79232147]
[1764637788647,9.79232147,128.16,128.12,0.72]
[1764637788844,9.79232147,128.16,128.13,7.80457348]
[1764637789240,9.79232147,128.16,128.13,8.52457348]
[1764637789565,7.80040168,128.2,128.14,0.72]
[1764637789767,9.79232147,128.19,128.14,3.82]
[1764637790266,9.79232147,128.19,128.15,0.72]
[1764637790486,9.79232147,128.2,128.15,0.72]
[1764637790970,9.79232147,128.18,128.15,8.52335544]
[1764637791268,9.79232147,128.18,128.15,0.72]
[1764637791657,8.80994492,128.2,128.15,0.72]
[1764637791955,9.79232147,128.18,128.15,0.72]
[1764637793048,9.79232147,128.17,128.14,7.80395709]
[1764637793247,9.79232147,128.18,128.14,7.80395709]
[1764637793667,9.79232147,128.18,128.15,0.72]
[1764637794772,9.79232147,128.2,128.15,0.72]
[1764637794973,9.79232147,128.19,128.16,7.80274656]
[1764637795260,9.79232147,128.2,128.17,0.72]
[1764637796259,9.79232147,128.23,128.17,10.51232147]
[1764637796457,8.80994492,128.25,128.19,9.79232147]
[1764637796458,9.79232147,128.25,128.19,9.79232147]
[1764637796771,9.79232147,128.23,128.18,9.58]
[1764637796967,9.79232147,128.23,128.19,7.8009205]
[1764637797166,9.79232147,128.23,128.19,8.5209205]
[1764637797464,9.79232147,128.22,128.19,8.5209205]
[1764637798402,9.79232147,128.2,128.17,0.72]
[1764637799050,9.79232147,128.2,128.17,8.52159009]
[1764637799350,8.80994492,128.22,128.17,28.02693455]
[1764637799351,9.79232147,128.21,128.17,28.02693455]
[1764637799557,9.79232147,128.21,128.18,0.72]
[1764637799963,16.65865474,128.23,128.18,0.72]
[1764637800167,9.79232147,128.22,128.18,0.72]
[1764637800656,9.79232147,128.19,128.17,27.30693455]
[1764637800872,9.79232147,128.18,128.17,10.90159009]
[1764637801080,8.80994492,128.17,128.11,8.52579189]
[1764637801287,9.79232147,128.15,128.13,0.72]
[1764637801469,8.80994492,128.17,128.11,28.03881671]
[1764637801470,9.79232147,128.14,128.11,28.03881671]
[1764637801771,9.79232147,128.14,128.12,0.72]
[1764637802151,9.79232147,128.14,128.13,7.80457348]
[1764637802376,16.61230633,128.17,128.13,7.80457348]
[1764637802575,9.79232147,128.16,128.14,0.72]
[1764637802750,9.79232147,128.16,128.13,27.31600718]
[1764637802955,9.79232147,128.16,128.14,0.72]
[1764637803151,7.79975004,128.21,128.14,0.72]
[1764637803378,9.79232147,128.2,128.14,10.51232147]
[1764637803570,9.79232147,128.17,128.14,0.72]
[1764637803764,9.79232147,128.18,128.14,0.72]
[1764637803963,0.36,128.21,128.14,0.72]
[1764637803964,9.79232147,128.17,128.14,0.72]
[1764637804169,9.79232147,128.18,128.15,7.80335544]
[1764637804555,9.79232147,128.18,128.16,0.72]
[1764637804751,9.79232147,128.19,128.16,0.72]
[1764637805053,9.79232147,128.2,128.16,0.72]
[1764637805556,28.66536844,128.24,128.16,0.72]
[1764637805557,9.79232147,128.23,128.16,26.82118547]
[1764637806089,9.79232147,128.25,128.19,9.79232147]
[1764637806383,9.79232147,128.24,128.2,8.86]
[1764637806588,0.1,128.26,128.2,0.72]
[1764637806768,0.1,128.26,128.22,26.10118547]
[1764637806966,0.1,128.26,128.22,34.96118547]
[1764637807285,0.1,128.26,128.23,10.51232147]
[1764637807487,0.1,128.26,128.24,0.72]
[1764637807781,9.89232147,128.26,128.23,0.72]
[1764637808155,9.89232147,128.26,128.24,7.79787897]
[1764637808363,9.79232147,128.25,128.24,7.79787897]
[1764637808686,0.1,128.26,128.24,7.79787897]
[1764637808985,0.1,128.26,128.24,8.51787897]
[1764637810168,0.1,128.26,128.25,8.51727095]
[1764637810374,0.1,128.29,128.25,37.8027698]
[1764637810587,0.1,128.29,128.26,0.72]
[1764637812264,0.1,128.29,128.27,7.79605519]
[1764637812474,0.1,128.29,128.28,0.66]
[1764637814281,0.1,128.29,128.28,8.45544745]
[1764637815897,0.1,128.29,128.28,7.79544745]
[1764637816191,0.1,128.29,128.27,7.79586937]
[1764637816377,0.1,128.29,128.27,8.45586937]
[1764637816566,0.1,128.29,128.28,0.66]
[1764637817474,9.3,128.36,128.28,0.66]
[1764637817991,9.79232147,128.32,128.28,0.66]
[1764637818290,9.79232147,128.33,128.28,0.66]
[1764637818597,9.3,128.36,128.28,0.66]
[1764637818598,9.79232147,128.32,128.28,17.29529716]
[1764637818808,9.79232147,128.29,128.28,7.79529716]
[1764637818982,9.79232147,128.3,128.28,7.79529716]
[1764637819565,9.79232147,128.3,128.27,7.79563383]
[1764637819769,9.79232147,128.3,128.27,8.45563383]
[1764637819970,9.79232147,128.31,128.27,8.45563383]
[1764637820176,9.79232147,128.31,128.27,27.94577182]
[1764637820474,9.79232147,128.31,128.28,0.66]
[1764637820683,9.79232147,128.31,128.29,7.79483981]
[1764637821175,9.79232147,128.31,128.29,8.45483981]
[1764637821481,9.79232147,128.31,128.29,7.79483981]
[1764637822200,9.79232147,128.31,128.28,27.28282153]
[1764637822377,9.79232147,128.31,128.28,27.94282153]
[1764637822573,9.79232147,128.32,128.29,0.66]
[1764637822779,9.79232147,128.33,128.29,3.56]
[1764637823377,9.79232147,128.33,128.3,8.45423226]
[1764637823675,9.79232147,128.37,128.31,18.63232147]
[1764637823892,9.79232147,128.38,128.32,9.79232147]
[1764637824098,9.79232147,128.38,128.33,9.5]
[1764637824398,9.79232147,128.37,128.33,9.5]
[1764637824608,9.79232147,128.38,128.34,0.66]
[1764637824780,9.89232147,128.39,128.34,0.66]
[1764637824978,0.1,128.39,128.34,0.66]
[1764637825304,0.1,128.39,128.35,37.06150728]
[1764637825488,0.1,128.39,128.35,36.10918581]
[1764637825671,9.89232147,128.39,128.36,0.66]
[1764637826295,9.79232147,128.37,128.35,7.79119594]
[1764637826488,0.46,128.38,128.35,7.79119594]
[1764637826489,6.22654071,128.36,128.35,7.79119594]
[1764637827305,6.22654071,128.37,128.33,7.79241019]
[1764637827482,6.22654071,128.36,128.33,7.79241019]
[1764637827884,8.34910147,128.39,128.33,7.79241019]
[1764637827885,6.22654071,128.35,128.33,7.79241019]
[1764637828291,6.22654071,128.36,128.33,8.45241019]
[1764637828600,6.22654071,128.35,128.33,8.45241019]
[1764637828800,6.22654071,128.34,128.31,7.79362481]
[1764637829104,6.22654071,128.34,128.3,19.48430829]
[1764637829105,8.84,128.36,128.29,7.79443921]
[1764637829106,6.22654071,128.32,128.29,7.79443921]
[1764637829306,6.22654071,128.3,128.29,7.79443921]
[1764637830182,6.22654071,128.3,128.24,0.68]
[1764637830183,6.68654071,128.3,128.24,0.68]
[1764637830404,6.22654071,128.25,128.22,0.68]
[1764637830612,0.46,128.29,128.23,0.68]
[1764637830613,6.22654071,128.26,128.23,0.68]
[1764637830782,6.22654071,128.26,128.23,7.79819529]
[1764637830982,6.22654071,128.27,128.24,0.68]
[1764637831199,6.22654071,128.28,128.24,0.68]
[1764637831399,6.22654071,128.29,128.24,0.68]
[1764637831787,6.22654071,128.28,128.24,0.68]
[1764637832299,6.22654071,128.3,128.24,15.74654071]
[1764637832706,6.22654071,128.29,128.26,7.79666302]
[1764637832901,6.22654071,128.28,128.26,7.79666302]
[1764637833106,6.22654071,128.28,128.24,9.52]
[1764637833311,6.22654071,128.29,128.25,8.47721846]
[1764637834710,6.22654071,128.29,128.25,27.97039584]
[1764637834905,0.46,128.31,128.25,27.97039584]
[1764637835086,6.22654071,128.29,128.26,0.68]
[1764637835406,8.25375653,128.31,128.17,7.80213778]
[1764637835583,6.22654071,128.27,128.22,0.68]
[1764637835779,8.80994492,128.29,128.22,0.68]
[1764637835780,6.22654071,128.26,128.22,0.68]
[1764637835996,7.79375653,128.31,128.22,0.68]
[1764637836181,6.22654071,128.28,128.23,16.308864]
[1764637836384,6.22654071,128.29,128.24,27.29257641]
[1764637836603,6.22654071,128.29,128.24,27.97257641]
[1764637836810,6.22654071,128.29,128.25,0.68]
[1764637838407,6.22654071,128.26,128.22,20.17764094]
[1764637838589,6.22654071,128.25,128.23,7.79848709]
[1764637838785,6.22654071,128.24,128.23,7.79848709]
[1764637839294,0.46,128.31,128.23,8.47848709]
[1764637839495,6.22654071,128.26,128.23,8.47848709]
[1764637839700,8.80994492,128.3,128.24,0.68]
[1764637839701,6.22654071,128.27,128.24,0.68]
[1764637839894,6.22654071,128.28,128.24,0.68]
[1764637840096,6.22654071,128.27,128.24,0.68]
[1764637840385,6.22654071,128.28,128.25,7.79727095]
[1764637840790,6.22654071,128.28,128.25,8.47727095]
[1764637842086,6.22654071,128.27,128.24,19.49327133]
[1764637842592,6.22654071,128.27,128.24,20.14327133]
[1764637843114,6.22654071,128.27,128.24,27.2911503]
[1764637843416,6.22654071,128.27,128.24,27.9411503]
[1764637844916,17.07457697,128.3,128.24,20.14327133]
[1764637845101,6.22654071,128.27,128.24,22.39327133]
[1764637845417,6.22654071,128.26,128.24,22.39327133]
[1764637845614,6.22654071,128.25,128.23,7.79848709]
[1764637845792,6.22654071,128.24,128.23,7.79848709]
[1764637846421,6.22654071,128.25,128.23,7.79848709]
[1764637847207,6.22654071,128.26,128.23,0.65]